[Event "US Masters 2022"]
[Site "Charlotte"]
[Date "2022.11.24"]
[Round "2.18"]
[White "Oberoi, Shelev"]
[Black "Escobar Forero, Alder"]
[Result "1-0"]
[ECO "B07"]
[WhiteElo "2328"]
[BlackElo "2510"]
[Annotator "TA"]
[PlyCount "89"]
[EventDate "2022.11.23"]
[EventType "swiss"]
[EventCountry "USA"]
[SourceTitle "playchess.com"]
[Source "ChessBase"]
[SourceQuality "1"]
[TimeControl "5400+30"]

{[%evp 14,89,29,20,21,26,58,40,40,52,47,50,74,37,54,18,28,29,46,18,145,30,29,0,39,0,73,63,66,-9,29,27,35,15,25,0,150,139,182,173,148,158,277,261,232,25,34,37,91,90,262,262,254,254,236,225,229,154,186,208,433,433,423,415,404,238,230,0,0,0,468,458,430,376,5675,5293,5177,5097]} 1. e4 {[%emt 0:00:03]} d6 {[%emt 0:00:14]} 2. d4 {[%emt 0:00:10]} Nf6 {[%emt 0:00:06]} 3. Nc3 {[%emt 0:00:16]} e5 {[%emt 0:00:05]} 4. Nge2 {[%emt 0:00:38]} Be7 {[%emt 0:00:40]} 5. g3 {[%emt 0:02:35]} O-O {[%emt 0:01:33]} 6. Bg2 {[%emt 0:01:52]} Nbd7 {[%emt 0:02:18][%cal Bb8d7,Bd7c5,Bc5e4][%mdl 32]} 7. O-O {[%emt 0:01:15]} c6 {[%emt 0:00:05]} 8. a4 {[%emt 0:00:34]} a5 {[%emt 0:02:00] B07: Pirc Defence: Miscellaneous Systems.} 9. h3 {[%emt 0:02:33]} exd4 {[%emt 0:04:27]} 10. Nxd4 {[%emt 0:04:13][%cal Be2d4,Bd4b5,Bb5c3][%mdl 32]} Nc5 {[%emt 0:00:18] White is slightly better.} 11. g4 {[%emt 0:04:11]} d5 {[%emt 0:17:40]} 12. exd5 {[%emt 0:03:36] [#]} cxd5 $146 {[%emt 0:01:37]} ({Predecessor:} 12... Nxd5 13. Nxd5 cxd5 14. Nb5 Be6 15. Be3 Qd7 16. b3 Rac8 17. f4 f5 18. gxf5 Bxf5 19. Qxd5+ Qxd5 20. Bxd5+ {½-½ (52) Wappler,M (2189)-Kunze,C (2296) Germany 2016}) 13. Ndb5 {[%emt 0:04:18]} Be6 {[%emt 0:06:00]} 14. f4 {[%emt 0:11:12]} Nce4 {[%emt 0:10:23]} 15. Be3 {[%emt 0:05:37]} Re8 {[%emt 0:14:48]} 16. f5 {[%emt 0:10:32]} Bc8 {[%emt 0:01:37]} (16... Nxc3 $11 {keeps the balance.} 17. Nxc3 Bd7) 17. g5 {[%emt 0:05:26]} (17. Bxe4 $1 $16 Nxe4 18. Nxd5 (18. Qxd5 Nxc3 19. Nxc3 Bd7 $11)) 17... Nxc3 $11 {[%emt 0:03:47]} 18. Nxc3 {[%emt 0:03:16]} (18. bxc3 {simplifies} Ne4 19. Bxe4 dxe4 20. Qxd8 Bxd8 21. Rad1) 18... Bd6 {[%emt 0:18:38]} 19. Qd3 {[%emt 0:07:55]} (19. Nxd5 $2 Nxd5 20. Qxd5 Rxe3 $19) 19... b6 {[%emt 0:05:12]} 20. Nb5 $16 {[%emt 0:07:47]} (20. gxf6 Rxe3 21. Qxd5 (21. Qxe3 Bc5 $15) 21... Ra7 $11) 20... Ba6 {[%emt 0:03:20] Strongly threatening ...Bxb5.} 21. Rae1 {[%emt 0:07:23]} (21. gxf6 Bxb5 22. Qxb5 (22. axb5 Rxe3 23. Qxd5 Bc5 $17) 22... Rxe3 23. Qxd5 (23. fxg7 $2 Bc5 $19) 23... Bc5 $1 24. Qxd8+ (24. Qxa8 Re4+ 25. Kh1 Qxa8 $15) 24... Rxd8 $15) (21. Rfe1 $1 $14 Ne4 22. Rad1 (22. Qxd5 $2 Bh2+ 23. Kxh2 Qxd5 $19) (22. Bxe4 Rxe4 23. Rad1 Rc8 $17)) 21... Bxb5 {[%emt 0:00:59]} (21... Ne4 {with more complications.} 22. g6 Ra7 23. c4 Bxb5 24. axb5 Qb8) 22. axb5 {[%emt 0:00:43]} Ne4 {[%emt 0:00:08]} 23. g6 {[%emt 0:02:50] Hoping for gxf7+.} (23. Qxd5 $2 Bh2+ $1 {[%mdl 512]} 24. Kxh2 Qxd5 $19) 23... Ra7 {[%emt 0:01:16]} 24. c4 {[%emt 0:02:44]} (24. Qxd5 $2 Bh2+ $1 {[%mdl 512]} 25. Kxh2 Qxd5 $19) (24. Rd1 $5 {[%cal Rd3d5]} Qb8 25. Bxe4 (25. Qxd5 $2 Bh2+ 26. Kh1 Ng3+ 27. Kxh2 Nxf1+ 28. Kg1 Nxe3 $19) 25... Rxe4 26. Rf3 $11 (26. Qxd5 Bh2+ 27. Kh1 Rxe3 $11)) 24... dxc4 {[%emt 0:04:18]} (24... Qb8 $1 $11 25. Bxe4 (25. cxd5 $2 Bh2+ 26. Kh1 Ng3+ 27. Kxh2 Nxf1+ 28. Kg1 Nxe3 $19) 25... dxe4) 25. Qxc4 {[%emt 0:00:17]} Nf6 {[%emt 0:00:05][%cal Oe8e3]} 26. Bd4 {[%emt 0:03:40] A strong pair of Bishops.} Rf8 {[%emt 0:01:56] [#]} 27. Rd1 $1 {[%emt 0:02:41] White has more active pieces. The black rooks are badly placed.} Qb8 {[%emt 0:00:00]} (27... Kh8 $16 {was worth a try.} 28. Qc6 Rd7) 28. Bxf6 {[%emt 0:01:25]} gxf6 {[%emt 0:00:00]} 29. Qh4 $2 {[%emt 0:01:51]} ({Better is} 29. Bd5 $18 {Qh4 is the strong threat.} Kh8 30. gxf7) 29... fxg6 $11 {[%emt 0:00:44]} 30. fxg6 {[%emt 0:00:10]} Bc5+ {[%emt 0:00:26]} (30... Bg3 $14 31. Qg4 hxg6) 31. Kh1 $16 {[%emt 0:00:12]} Qe5 {[%emt 0:00:13]} (31... f5 $16) 32. Bd5+ $18 {[%emt 0:01:00]} Kh8 {[%emt 0:00:01]} 33. Bf7 {[%emt 0:00:19]} Raxf7 {[%emt 0:01:13]} 34. gxf7 $40 {[%emt 0:00:10][%mdl 128] White wants a kill. The board is on fire.} Rxf7 {[%emt 0:00:39]} 35. Rfe1 {[%emt 0:02:41]} Qg5 {[%emt 0:00:40]} 36. Qe4 {[%emt 0:00:53]} h5 $2 {[%emt 0:00:26]} (36... Qg3 {is a better defense.} 37. Rd3 Qg6 38. Rd8+ Kg7) 37. Rd5 {[%emt 0:00:37]} f5 {[%emt 0:00:25]} 38. Qe8+ {[%emt 0:00:46]} ({Not} 38. Qe6 Rg7 39. Qe2 (39. Qxf5 $2 Qg2#) (39. Qc8+ $2 Rg8 $19) 39... Qh4 40. Qe8+ (40. Rxf5 Qxh3+ 41. Qh2 Qxf5 42. Re8+ Kh7) 40... Kh7 $11) 38... Rf8 {[%emt 0:00:36]} 39. Qe6 {[%emt 0:00:43]} (39. Qe5+ $142 Qf6 40. Rd7) 39... Rg8 {[%emt 0:00:34][%csl Gg8][%cal Rg5g2] [#]} 40. Qe5+ $2 {[%emt 0:00:19]} (40. Qxf5 $2 Qg2#) ({White has to play} 40. Qe2 $1 $18) 40... Rg7 $1 $11 {[%emt 0:00:00][%csl Gg7][%cal Rg5g2]} 41. Qe2 {[%emt 0:01:01] Against Qg2+. Black must now prevent Qf1.} Kh7 $2 {[%emt 0:00:59][%mdl 8192]} (41... Qh4 $11 42. Qe8+ (42. Rxf5 {is a self mate.} Qxh3+ 43. Qh2 Qxf5 44. Re8+ Kh7) 42... Kh7) 42. Qf3 $18 {[%emt 0:00:10]} Rf7 {[%emt 0:00:11]} 43. Rf1 {[%emt 0:00:18]} Kg6 $2 {[%emt 0:00:15] [#]} (43... Qe3 44. Qxh5+ Kg7 45. Rdxf5 Qe4+ 46. Qf3 (46. Kh2 Bd6+ 47. Kg1 Bc5+ 48. Rxc5 Qd4+ 49. Kg2 Qxb2+ 50. Kg3 Qa3+ 51. Kh2 Qb2+ 52. Kg3 Qa3+ 53. Kh4 Qb4+ 54. Kg3 Qa3+ $11) 46... Re7) 44. Rxc5 $1 {[%emt 0:00:06][%mdl 512]} bxc5 {[%emt 0:00:02]} 45. Rg1 {[%emt 0:00:01] Weighted Error Value: White=0.43/Black=0.45} 1-0

[Event "US Masters 2022"]
[Site "Charlotte"]
[Date "2022.11.24"]
[Round "2.19"]
[White "Balakrishnan, Praveen"]
[Black "Gedajlovic, Max"]
[Result "1-0"]
[ECO "C45"]
[WhiteElo "2510"]
[BlackElo "2317"]
[Annotator "TA"]
[PlyCount "87"]
[EventDate "2022.11.23"]
[EventType "swiss"]
[EventCountry "USA"]
[SourceTitle "playchess.com"]
[Source "ChessBase"]
[SourceQuality "1"]
[TimeControl "5400+30"]

{[%evp 14,87,0,-31,20,0,0,0,3,0,30,25,22,33,39,40,47,33,60,65,125,117,133,121,132,130,120,132,122,120,118,93,86,94,96,57,80,75,75,84,87,68,100,73,132,133,173,166,227,226,225,214,185,175,231,220,200,125,237,219,187,83,241,223,585,569,1093,1040,809,746,29971,29972,29974,29975,29952,5416]} 1. e4 {[%emt 0:08:05]} e5 {[%emt 0:00:15]} 2. Nf3 {[%emt 0:00:06]} Nc6 {[%emt 0:00:09]} 3. d4 {[%emt 0:00:06]} exd4 {[%emt 0:00:09]} 4. Nxd4 {[%emt 0:00:09]} Nf6 {[%emt 0:00:38]} 5. Nxc6 {[%emt 0:00:14]} bxc6 {[%emt 0:00:09]} 6. e5 {[%emt 0:00:07]} Qe7 {[%emt 0:01:02]} 7. Qe2 {[%emt 0:00:06]} Nd5 {[%emt 0:00:07]} 8. Nd2 {[%emt 0:00:07]} (8. c4 $5 {[%cal Rc4d5]} Ba6 9. Nd2 $11) 8... f6 {[%emt 0:17:21] C45: Scotch Game.} (8... Rb8 $15) 9. Nf3 {[%emt 0:16:50]} fxe5 {[%emt 0:02:17]} 10. Bg5 {[%emt 0:06:54] Against e4} Qe6 {[%emt 0:03:06] [#] The position is equal.} 11. Qxe5 $146 {[%emt 0:03:11]} (11. Nxe5 Bb4+ 12. Kd1 (12. c3 $2 Nxc3 13. bxc3 Bxc3+ 14. Bd2 Bxa1 $19) 12... O-O $17) ({Predecessor:} 11. Qe4 Bc5 12. Bc4 Nf6 13. Qxe5 Bxf2+ 14. Kxf2 Ng4+ 15. Kg3 Nxe5 16. Bxe6 Nxf3 17. Bxd7+ Bxd7 18. gxf3 {1-0 (41) Rodriguez Boado,M (2170)-Alonso Martinez,T (2135) Mondariz 2012}) 11... Bb4+ {[%emt 0:08:52]} 12. Bd2 {[%emt 0:04:24]} Qxe5+ {[%emt 0:01:15]} 13. Nxe5 {[%emt 0:00:07]} O-O {[%emt 0:12:29]} 14. Bxb4 {[%emt 0:07:07]} Nxb4 {[%emt 0:00:03]} 15. Bc4+ {[%emt 0:04:38]} Kh8 {[%emt 0:08:06]} 16. O-O-O {[%emt 0:06:26]} d5 {[%emt 0:05:42] Inhibits f3.} (16... g6 $1 $14) 17. a3 $1 $16 {[%emt 0:21:51] Threatens to win with Bb3.} (17. c3 $6 dxc4 18. cxb4 a5 $11) 17... dxc4 {[%emt 0:03:00]} 18. axb4 {[%emt 0:00:09]} a5 {[%emt 0:01:56]} 19. bxa5 {[%emt 0:01:59] White is more active.} (19. Nxc4 $6 axb4 20. f3 Ra6 $11) 19... Rxa5 {[%emt 0:01:32]} 20. Nxc4 {[%emt 0:02:57]} Ra1+ {[%emt 0:04:08]} 21. Kd2 {[%emt 0:00:02]} Rxf2+ {[%emt 0:00:44]} 22. Ke3 {[%emt 0:03:18] Threatening mate with Rd8+.} Rxd1 {[%emt 0:00:02]} 23. Rxd1 {[%emt 0:00:07][%mdl 4096] Endgame Intending Rd8+ and mate. KRB-KRN} Rf8 {[%emt 0:00:04] Inhibits Rd8.} 24. Na5 {[%emt 0:01:10][%cal Od1d4]} Re8+ {[%emt 0:03:13]} 25. Kf2 {[%emt 0:01:57]} Bf5 {[%emt 0:02:13]} 26. c4 {[%emt 0:11:23]} h5 {[%emt 0:04:35]} 27. Nxc6 {[%emt 0:00:00]} Be4 {[%emt 0:00:53] Against Rd5} 28. Nd4 {[%emt 0:00:00]} Rf8+ {[%emt 0:02:56]} (28... c5 $142) 29. Kg1 $1 {[%emt 0:00:00]} Rb8 {[%emt 0:02:37]} 30. Ne6 $1 {[%emt 0:00:00]} ({Don't do} 30. Re1 c5 $16) 30... Kg8 {[%emt 0:02:45]} (30... Rxb2 $2 31. Rd8+ (31. Nxc7 Rxg2+ 32. Kf1 Rxh2 $17) 31... Kh7 32. Ng5+ (32. Nxc7 $2 Rxg2+ 33. Kf1 Rxh2 $17) 32... Kg6 33. Nxe4 $18) (30... Bc2 $142 31. Rd5 Rxb2) 31. Rd8+ $1 $18 {[%emt 0:00:00]} ({Weaker is} 31. Nxc7 Rxb2 32. Rd8+ Kf7 $11) 31... Rxd8 {[%emt 0:00:04]} 32. Nxd8 {[%emt 0:00:00] KB-KN} Bd3 {[%emt 0:02:52]} 33. c5 {[%emt 0:00:00]} Bc4 {[%emt 0:00:39]} (33... Bf5 $142 34. b4 Kf8) 34. Nc6 {[%emt 0:00:12]} Kf8 {[%emt 0:00:11]} 35. Ne5 {[%emt 0:01:53]} Bd5 {[%emt 0:02:43]} (35... Bb5 $16) 36. Ng6+ {[%emt 0:00:11]} Ke8 {[%emt 0:00:09]} 37. h4 {[%emt 0:00:51]} (37. b4 $18) 37... Kd7 $2 {[%emt 0:00:50] [#] A mistake that costs the game.} (37... Bf7 $16 {was necessary.} 38. Ne5 Bd5) 38. b4 $1 {[%emt 0:00:48] Hoping for b5.} Be4 $2 {[%emt 0:02:01] Prevents b5.} (38... c6 {is a better chance.} 39. Kf2 Ke8) 39. Nf4 {[%emt 0:00:22]} Kc6 {[%emt 0:08:13]} 40. Nxh5 {[%emt 0:00:30]} g6 {[%emt 0:00:00]} 41. Nf6 {[%emt 0:00:16]} Bc2 {[%emt 0:00:00]} 42. Kf2 {[%emt 0:00:14] White mates.} Kb5 {[%emt 0:00:00] [#]} 43. Ke3 $1 {[%emt 0:00:06]} Kxb4 {[%emt 0:00:00]} 44. Kd4 {[%emt 0:00:05] Weighted Error Value: White=0.08 (flawless) /Black=0.51} 1-0

[Event "US Masters 2022"]
[Site "Charlotte"]
[Date "2022.11.24"]
[Round "2.20"]
[White "Gauri, Shankar"]
[Black "Brodsky, David"]
[Result "1/2-1/2"]
[ECO "A05"]
[WhiteElo "2322"]
[BlackElo "2509"]
[Annotator "TA"]
[PlyCount "89"]
[EventDate "2022.11.23"]
[EventType "swiss"]
[EventCountry "USA"]
[SourceTitle "playchess.com"]
[Source "ChessBase"]
[SourceQuality "1"]
[TimeControl "5400+30"]

{[%evp 12,89,15,6,28,0,0,0,8,0,12,13,13,7,8,-3,14,26,128,126,174,165,173,79,67,0,15,-23,-32,-26,-14,-13,0,0,0,0,0,0,0,0,0,0,0,0,-12,-121,-108,-88,-71,-118,-109,-125,-84,-97,-87,-123,-51,-51,0,0,0,0,0,0,0,0,0,0,0,0,0,0,0,0,0,0,0,0,0,0]} 1. Nf3 {[%emt 0:09:21]} Nf6 {[%emt 0:01:09]} 2. g3 {[%emt 0:00:25]} b5 {[%emt 0:00:06]} 3. Bg2 {[%emt 0:01:15]} Bb7 {[%emt 0:00:06]} 4. O-O {[%emt 0:01:21]} e6 {[%emt 0:00:23]} 5. d3 {[%emt 0:03:24]} Be7 {[%emt 0:00:26]} 6. e4 {[%emt 0:02:39]} O-O {[%emt 0:00:33]} 7. Re1 {[%emt 0:04:57]} d6 {[%emt 0:02:39] A05: Réti Opening: 1 Nf3 Nf6.} 8. Nbd2 {[%emt 0:09:01]} c5 {[%emt 0:03:59]} 9. a4 {[%emt 0:00:27][%cal Ba2a4,Ba4a5,Ba5a6][%mdl 32]} b4 {[%emt 0:01:24]} 10. a5 {[%emt 0:06:12]} e5 {[%emt 0:08:32]} 11. Nc4 {[%emt 0:02:02]} Nc6 {[%emt 0:02:14]} 12. a6 {[%emt 0:16:50]} Bc8 {[%emt 0:00:08] [#]} 13. c3 $146 {[%emt 0:00:09]} ({Predecessor:} 13. Nh4 g6 14. Nf3 Be6 15. Ng5 Bg4 16. f3 Bd7 17. Nh3 Re8 18. f4 Bg4 19. Qd2 {0-1 (61) Glauser,P (2165)-Kratochvil,J (2114) ICCF email 2011}) 13... bxc3 {[%emt 0:19:20]} 14. bxc3 {[%emt 0:00:16]} Nb8 {[%emt 0:00:07] [#]} (14... Be6 $11 {keeps the balance.}) 15. d4 $1 $16 {[%emt 0:13:15] White is more active.} cxd4 {[%emt 0:02:10]} (15... Bxa6 $16 16. dxe5 Bxc4) 16. cxd4 $18 {[%emt 0:00:06]} Bxa6 {[%emt 0:00:13]} 17. Na5 {[%emt 0:08:52]} (17. Ne3 $18 {and White stays clearly on top.}) 17... Qb6 $16 {[%emt 0:14:40]} 18. d5 {[%emt 0:14:06]} (18. Be3 $14 Qb5 19. Bd2) 18... Ng4 $11 {[%emt 0:06:06]} 19. Qc2 {[%emt 0:01:16]} (19. Be3 {simplifies} Qc7 20. Nd2 Nxe3 21. Rxe3 Bg5 22. Rea3) 19... Rc8 {[%emt 0:00:58]} 20. Qa2 {[%emt 0:00:52]} Bd3 {[%emt 0:01:29] Prevents Rb1.} (20... Rc5 {simplifies} 21. Be3 Nxe3 22. Rxe3 Bb5) 21. Be3 {[%emt 0:00:20]} Nxe3 {[%emt 0:03:37]} 22. Rxe3 {[%emt 0:00:02]} Bb5 $36 {[%emt 0:01:58][%mdl 2048] Black has the initiative.} 23. Rb3 {[%emt 0:00:22]} a6 {[%emt 0:02:56]} 24. Bf1 {[%emt 0:00:39]} Bd8 {[%emt 0:04:12]} 25. Qb2 {[%emt 0:03:42][%cal Oa5c4]} Rc5 {[%emt 0:09:56] Against Nc4} 26. Nd2 {[%emt 0:00:15][%cal Bf3d2,Bd2f1,Bf1e3][%mdl 32]} Qc7 {[%emt 0:01:11]} 27. Nac4 {[%emt 0:01:22][%mdl 64]} Bg5 {[%emt 0:03:44] This pair of bishops is nice.} 28. Ne3 {[%emt 0:00:18]} (28. Nb6 $11 {remains equal.} Qxb6 29. Bxb5 (29. Nf3 Bc1 $17)) 28... Bxe3 $17 {[%emt 0:00:52]} 29. Rxe3 {[%emt 0:00:26]} Rc2 {[%emt 0:01:15]} (29... Bxf1 {simplifies} 30. Nxf1 Nd7 31. Rb3 a5) 30. Qb4 {[%emt 0:00:05]} (30. Qb1 $142) 30... Bxf1 {[%emt 0:00:23]} 31. Nxf1 {[%emt 0:00:05]} Nd7 {[%emt 0:00:27]} 32. Rea3 {[%emt 0:00:52] Prevents a5.} Rb8 {[%emt 0:03:22]} 33. Qa4 {[%emt 0:00:30]} Rbb2 {[%emt 0:01:46]} (33... Rcb2 $17 {Hoping for ...Nc5.} 34. Qc6 Qd8) 34. Rf3 $15 {[%emt 0:00:17]} Nf6 {[%emt 0:02:37]} (34... g6 $15) 35. Ne3 $11 {[%emt 0:01:10] Black must now prevent Rxf6. The position is equal.} Rc1+ {[%emt 0:00:29]} 36. Rxc1 {[%emt 0:00:10]} Qxc1+ {[%emt 0:00:02]} 37. Kg2 $1 {[%emt 0:00:04][%cal Of3f6] Rxf6! is the strong threat.} h5 {[%emt 0:01:32]} (37... Rb1 $2 {[#]} 38. Rxf6 $1 {[%mdl 512]} Rb8 39. Rxd6 $18) 38. Rxf6 {[%emt 0:00:30][%mdl 64]} Qxe3 {[%emt 0:01:09][%mdl 4096] Endgame KQR-KQR} (38... gxf6 39. Qe8+ Kh7 40. Qxf7+ Kh8 41. Qxh5+ Kg8 42. Qe8+ Kh7 43. Qf7+ Kh8 44. Qxf6+ Kg8 45. Qd8+ Kh7 46. Qe7+ Kg8 47. Ng4 $18) 39. Rf5 {[%emt 0:01:32]} Qe2 {[%emt 0:00:45]} 40. Qe8+ $1 {[%emt 0:00:29]} Kh7 {[%emt 0:00:01] aiming for ...Rb1.} 41. Qxf7 {[%emt 0:00:19]} Qxe4+ {[%emt 0:00:12]} 42. Kh3 {[%emt 0:00:34][%cal Rf5h5]} Qg4+ {[%emt 0:00:27]} 43. Kg2 {[%emt 0:00:01]} Qe4+ {[%emt 0:00:45]} 44. Kh3 $1 {[%emt 0:00:01][%cal Rf5h5]} Qg4+ {[%emt 0:00:06]} 45. Kg2 {[%emt 0:00:02] Weighted Error Value: White=0.15 (very precise) /Black=0.13 (very precise)} 1/2-1/2

[Event "US Masters 2022"]
[Site "Charlotte"]
[Date "2022.11.24"]
[Round "2.21"]
[White "Budisavljevic, Luka"]
[Black "Antova, Gabriela"]
[Result "1-0"]
[ECO "D27"]
[WhiteElo "2505"]
[BlackElo "2302"]
[Annotator "TA"]
[PlyCount "93"]
[EventDate "2022.11.23"]
[EventType "swiss"]
[EventCountry "USA"]
[SourceTitle "playchess.com"]
[Source "ChessBase"]
[SourceQuality "1"]
[TimeControl "5400+30"]

{[%evp 21,93,24,26,16,20,10,4,0,0,0,0,0,4,0,8,7,85,85,83,89,108,55,51,60,109,122,109,103,95,102,100,112,88,105,185,179,183,111,129,137,114,119,162,45,35,39,57,24,109,109,122,124,215,192,214,139,139,126,166,31,277,274,400,353,5106,3415,1152,1076,1451,1223,1416,1349,29983,29978]} 1. Nf3 {[%emt 0:00:37]} d5 {[%emt 0:02:02]} 2. c4 {[%emt 0:00:08]} dxc4 {[%emt 0:01:59]} 3. e3 {[%emt 0:01:17]} Nf6 {[%emt 0:01:28]} 4. Bxc4 {[%emt 0:00:07]} e6 {[%emt 0:00:07]} 5. O-O {[%emt 0:00:59]} c5 {[%emt 0:00:44]} 6. b3 {[%emt 0:06:02]} a6 {[%emt 0:02:35]} 7. Bb2 {[%emt 0:00:11]} b5 {[%emt 0:04:18]} 8. Be2 {[%emt 0:00:06]} Bb7 {[%emt 0:00:18]} 9. a4 {[%emt 0:03:55]} b4 {[%emt 0:02:08]} 10. d4 {[%emt 0:01:03]} Nbd7 {[%emt 0:01:22][%cal Bb8d7,Bd7c5,Bc5e4][%mdl 32]} 11. Nbd2 {[%emt 0:01:08][%cal Bb1d2,Bd2c4,Bc4b6][%mdl 32]} Be7 {[%emt 0:01:01]} 12. Rc1 {[%emt 0:03:32] D27: Queen's Gambit Accepted: Classical main line: 7 e4!? and 7 a4.} Rc8 {[%emt 0:04:29]} 13. Nc4 {[%emt 0:01:18]} O-O {[%emt 0:01:52]} 14. Rc2 {[%emt 0:01:31] [#] The position is equal.} cxd4 $146 {[%emt 0:11:20]} ({Predecessor:} 14... Qc7 15. dxc5 Be4 16. Rd2 Nxc5 17. Be5 Qb7 18. Nd6 Bxd6 19. Bxd6 Rfe8 20. Rd4 Bd5 21. Bc4 {0-1 (31) Gabriel,C (2535)-Adianto,U (2585) Newark 1995}) 15. Nxd4 {[%emt 0:10:33]} Nc5 {[%emt 0:01:35]} 16. Bf3 {[%emt 0:02:01]} Nfe4 {[%emt 0:06:55]} 17. a5 {[%emt 0:16:42]} Bf6 {[%emt 0:05:57]} 18. Nb6 {[%emt 0:10:37]} Rb8 {[%emt 0:06:52]} (18... Rc7 $1 $11) 19. Rc4 $16 {[%emt 0:06:14]} e5 {[%emt 0:11:20]} 20. Bxe4 $1 {[%emt 0:10:13]} Nxe4 {[%emt 0:01:01]} 21. Nf3 {[%emt 0:04:39] Pair of Knights!} (21. Nc6 $16 Qxd1 22. Rxd1 Bxc6 23. Rxc6) 21... Nd6 {[%emt 0:12:46]} 22. Rxb4 {[%emt 0:00:57]} ({Stronger than} 22. Bxe5 Nxc4 23. Nxc4 Qxd1 24. Rxd1 Bxf3 25. gxf3 Bxe5 26. Nxe5 Rfd8 $17) 22... Qe7 {[%emt 0:03:00]} (22... Re8 $1 $14) 23. Nd5 {[%emt 0:03:06] White is more active.} Bxd5 {[%emt 0:02:43]} 24. Rxb8 {[%emt 0:00:02]} Rxb8 {[%emt 0:00:21]} 25. Qxd5 {[%emt 0:00:02][%cal Ob2a3]} Qe6 {[%emt 0:05:03]} 26. Rd1 {[%emt 0:05:38]} Qxd5 {[%emt 0:02:09]} 27. Rxd5 {[%emt 0:00:02]} Ne4 {[%emt 0:03:37]} (27... Rxb3 $16 28. Rxd6 Rxb2) 28. Bxe5 $18 {[%emt 0:00:50]} ({Resist} 28. Nxe5 Rxb3 29. Nc4 h6 $11) 28... Rxb3 {[%emt 0:00:06] ( -> ...Rb1+)} 29. g3 {[%emt 0:02:33]} (29. g4 $1 $18) 29... h6 {[%emt 0:01:15]} 30. Rd4 {[%emt 0:01:45]} Bxe5 {[%emt 0:01:12]} 31. Nxe5 $16 {[%emt 0:00:12][%mdl 4096] Endgame KRN-KRN} f5 {[%emt 0:00:18]} 32. h4 {[%emt 0:02:08]} (32. g4 $1 $18 {[%cal Rg4f5]} Rb5 33. Nc6) 32... Rb5 $14 {[%emt 0:00:46][%csl LRa5,LRe5]} 33. Nc4 {[%emt 0:01:18]} h5 {[%emt 0:01:39]} 34. Kg2 {[%emt 0:01:29] White wants to play f3.} Rb4 {[%emt 0:01:11]} (34... Rc5 $1 $11) 35. Rd8+ $16 {[%emt 0:00:37]} Kh7 {[%emt 0:00:09] [#]} 36. Nd6 {[%emt 0:02:17] Strongly threatening Nxe4.} Nf6 {[%emt 0:02:05]} (36... Ra4 $16) 37. Nxf5 {[%emt 0:01:20]} Rb5 {[%emt 0:00:04]} 38. Nd6 {[%emt 0:01:05]} Rxa5 {[%emt 0:00:06]} 39. e4 {[%emt 0:01:46][%cal Be3e4,Be4e5][%mdl 32]} Ra2 {[%emt 0:00:10] [#]} 40. Rf8 {[%emt 0:00:00]} ({White must play} 40. e5 $1 $18 {[%cal Re5f6]} Ng4 41. Ne4 Nxe5 42. Rd5) 40... Rd2 $2 {[%emt 0:01:25] This costs Black the game.} (40... Ng4 $14) 41. e5 $18 {[%emt 0:00:00]} Ng4 {[%emt 0:00:22]} (41... Kg6 {keeps fighting.} 42. Ra8 Ng4) 42. Ne4 {[%emt 0:00:06] And now e6 would win.} Rd5 $2 {[%emt 0:01:00]} (42... Rd7 43. e6 Re7 44. Ng5+ Kh6) 43. Ng5+ {[%emt 0:00:16]} Kg6 {[%emt 0:00:06]} 44. f4 {[%emt 0:00:35] White wants to mate with f5+.} Ne3+ {[%emt 0:00:22]} 45. Kf2 {[%emt 0:00:31]} Nf5 {[%emt 0:00:14]} 46. g4 {[%emt 0:01:03]} Nxh4 {[%emt 0:01:13]} 47. Kg3 {[%emt 0:00:01] Weighted Error Value: White=0.24 (precise) /Black=0.49} 1-0